bitfinex/quotes_ETHUSD_20260302
["timestamp","ask_amount","ask_price","bid_price","bid_amount"]
[1772418480824,2.22314677,1950.2,1949.7,0.0011]
[1772418481428,2.22314677,1950.1,1949.7,0.0011]
[1772418481810,5.12789305,1950.5,1949.8,3.69225703]
[1772418481811,2.22414677,1950.5,1949.8,3.69225703]
[1772418482023,2.22414677,1950.5,1950.0,2.32025703]
[1772418482024,0.001,1950.5,1950.0,2.32025703]
[1772418482222,0.001,1950.5,1950.1,3.60224256]
[1772418482948,1.538,1950.9,1950.3,2.32025703]
[1772418482949,3.50466284,1950.9,1950.3,2.32025703]
[1772418483317,1.28151607,1950.9,1950.3,2.32025703]
[1772418484534,2.22314677,1950.8,1950.3,2.32025703]
[1772418485122,1.28151607,1950.9,1950.4,2.32025703]
[1772418485743,29.73999061,1951.0,1950.4,2.32025703]
[1772418485944,31.02139179,1951.0,1950.4,2.32025703]
[1772418488836,31.02139179,1951.0,1950.5,3.60197966]
[1772418489967,59.51417577,1950.5,1950.4,1.28178835]
[1772418490173,29.73999061,1951.0,1950.5,2.18844573]
[1772418490361,2.22314677,1950.9,1950.4,3.56044573]
[1772418490853,0.001,1950.8,1950.4,4.84223319]
[1772418491055,0.001,1950.8,1950.4,3.56044573]
[1772418491350,2.22414677,1950.8,1950.2,1.373]
[1772418492722,2.22314677,1950.6,1949.9,5.233]
[1772418492923,2.22314677,1950.4,1949.9,1.373]
[1772418494023,6.69976135,1950.7,1950.0,3.31040496]
[1772418494024,5.12645548,1950.7,1950.0,3.31040496]
[1772418494752,4.48031789,1950.7,1950.0,3.31040496]
[1772418494948,5.12713135,1950.8,1950.2,3.31040496]
[1772418495359,8.32585802,1950.8,1950.2,3.31040496]
[1772418497366,8.32585802,1950.8,1950.2,4.59232011]
[1772418497562,8.32585802,1950.8,1950.2,3.31040496]
[1772418497764,3.27915512,1950.7,1950.2,3.31040496]
[1772418498343,3.27915512,1950.7,1950.1,3.86]
[1772418498754,3.27915512,1950.7,1949.8,3.8611]
[1772418499044,8.81198215,1950.8,1949.8,3.8611]
[1772418499045,3.27915512,1950.4,1949.8,1.3761]
[1772418499663,3.27915512,1950.2,1949.8,1.3761]
[1772418500743,3.27915512,1950.2,1949.8,0.0011]
[1772418501765,1.28198553,1950.1,1949.8,0.0011]
[1772418502866,4.56114065,1950.1,1949.8,0.0011]
[1772418507774,3.27915512,1950.1,1949.8,0.0011]
[1772418508456,3.27915512,1949.8,1949.7,0.0011]
[1772418508657,3.27915512,1950.3,1949.7,0.0011]
[1772418508967,3.70035027,1950.0,1949.7,0.0011]
[1772418509277,3.70035027,1949.8,1949.5,0.0011]
[1772418509649,3.70035027,1949.6,1949.3,3.16473729]
[1772418509849,1.28236103,1949.6,1949.3,3.16473729]
[1772418510079,1.28230222,1949.7,1949.3,3.16473729]
[1772418511795,3.27915512,1949.6,1949.3,3.16473729]
[1772418512082,4.56152749,1949.6,1949.3,3.16473729]
[1772418512509,3.27915512,1949.5,1949.3,3.16473729]
[1772418512656,3.27915512,1949.4,1949.0,0.00263886]
[1772418514482,3.27915512,1949.2,1949.0,0.00263886]
[1772418514665,4.87315512,1949.2,1949.0,0.00263886]
[1772418514868,3.27915512,1949.1,1949.0,0.00263886]
[1772418515069,3.27915512,1949.1,1948.9,0.0011]
[1772418516587,4.56179839,1949.1,1949.0,0.0011]
[1772418516986,7.6735841,1949.5,1949.0,0.0011]
[1772418516987,1.28244588,1949.4,1949.0,0.0011]
[1772418517162,1.28244588,1949.4,1949.1,2.19280799]
[1772418517562,4.561601,1949.4,1949.1,2.19280799]
[1772418517763,3.27915512,1949.3,1949.1,2.19280799]
[1772418518075,3.27915512,1949.3,1949.0,0.0011]
[1772418518689,1.28336631,1949.6,1949.0,0.94090861]
[1772418518889,0.001,1949.6,1949.0,0.94090861]
[1772418519094,1.28331688,1949.6,1949.0,0.94090861]
[1772418519265,4.562472,1949.6,1949.0,0.94090861]
[1772418519665,0.001,1949.6,1949.0,0.94090861]
[1772418520199,4.56247137,1949.6,1949.0,0.94090861]
[1772418521266,0.001,1949.6,1949.1,2.26637956]
[1772418521690,3.27915512,1949.4,1948.9,1.3741]
[1772418521887,3.27915512,1949.3,1948.9,0.0011]
[1772418522815,3.27365712,1949.3,1948.9,0.0011]
[1772418523109,1.28257746,1949.2,1948.9,0.0011]
[1772418523308,4.56156225,1949.5,1948.9,0.97062547]
[1772418523511,1.28240713,1949.5,1948.9,0.97062547]
[1772418525486,1.28240713,1949.5,1948.9,2.2533351]
[1772418526808,4.56156225,1949.5,1948.9,2.2533351]
[1772418527307,0.001,1949.6,1949.0,0.91767216]
[1772418527483,0.001,1949.6,1949.1,1.28264327]
[1772418527689,3.20330857,1949.6,1948.9,5.2331]
[1772418528006,3.20330857,1949.6,1948.9,7.43612782]
[1772418528374,3.20330857,1949.6,1948.9,6.15336145]
[1772418528685,3.20330857,1949.6,1948.9,6.51587044]
[1772418529286,3.20330857,1949.6,1949.0,0.0011]
[1772418529483,1.28238009,1949.5,1949.0,0.0011]
[1772418529706,3.20230857,1949.4,1949.0,0.0011]
[1772418531906,4.48568368,1949.6,1949.0,0.87976091]
[1772418533326,1.28337511,1949.6,1949.0,0.87976091]
[1772418533891,0.001,1949.6,1949.1,2.14054553]
[1772418535019,0.001,1949.6,1949.1,1.28264327]
[1772418535220,0.001,1949.6,1949.2,0.8475465]
[1772418535413,0.001,1949.6,1949.3,2.2245465]
[1772418536439,0.001,1949.6,1949.4,2.11963402]
[1772418537026,0.001,1949.6,1949.4,0.83718814]
[1772418537207,0.001,1949.6,1949.3,2.65946182]
[1772418537610,0.001,1949.6,1949.3,2.6595104]
[1772418537998,0.001,1949.6,1949.3,1.377]
[1772418538622,0.001,1949.6,1949.3,2.65950958]
[1772418540531,0.001,1949.6,1949.3,1.377]
[1772418540743,3.20330857,1949.6,1949.3,1.377]
[1772418541032,0.001,1949.5,1949.3,1.377]
[1772418542833,1.28338009,1949.5,1949.3,1.377]
[1772418543210,1.28338009,1949.5,1949.0,5.92930943]
[1772418543211,4.48568866,1949.5,1949.1,1.385]
[1772418543410,3.20330857,1949.5,1949.1,1.385]
[1772418544834,4.4857112,1949.5,1949.1,1.385]
[1772418545342,3.20230857,1949.4,1949.0,3.8611]
[1772418545505,3.20230857,1949.4,1949.0,0.0011]
[1772418547137,3.20230857,1949.3,1949.0,0.0011]
[1772418549938,4.48443361,1949.9,1949.3,0.7321928]
[1772418550129,4.48443361,1949.9,1949.4,1.39]
[1772418550822,3.20230857,1949.9,1949.4,2.11194677]
[1772418552042,3.20230857,1949.9,1949.5,1.28238009]
[1772418554941,3.20230857,1949.9,1949.4,7.24163825]
[1772418554942,4.48443523,1949.9,1949.4,3.39433988]
[1772418555341,1.28212666,1949.9,1949.4,3.39433988]
[1772418555644,2.86348629,1949.8,1949.4,3.39433988]
[1772418558046,4.1456783,1949.8,1949.4,2.11194677]
[1772418558546,2.87202617,1949.7,1949.4,1.39]
[1772418559728,4.1541432,1949.9,1949.4,3.30575676]
[1772418559952,4.1541432,1949.9,1949.4,2.02333413]
[1772418560141,2.87202617,1949.8,1949.4,2.02333413]
[1772418561754,4.15422988,1949.8,1949.4,2.02333413]
[1772418562249,2.87202617,1949.8,1949.4,3.30577976]
[1772418562846,2.87202617,1949.8,1949.4,1.39]
[1772418562847,2.87202617,1949.7,1949.4,1.39]
[1772418563452,2.87202617,1949.7,1949.4,2.67243628]
[1772418564258,2.87202617,1949.9,1949.5,0.59366099]
[1772418564424,2.87202617,1949.9,1949.5,0.0011]
[1772418564926,0.001,1949.7,1949.5,0.0011]
[1772418568859,0.001,1949.7,1949.5,0.5429687]
[1772418569224,4.15567769,1950.0,1949.6,0.5408687]
[1772418569225,0.00153886,1950.0,1949.6,0.5408687]
[1772418569455,0.00153886,1950.0,1949.8,0.5408687]
[1772418569660,4.15382219,1950.4,1949.8,0.5408687]
[1772418569956,4.15382219,1950.4,1949.9,0.5307794]
[1772418570722,2.87202617,1950.4,1949.9,0.5307794]
[1772418570925,2.87202617,1950.4,1950.0,1.28205128]
[1772418570926,4.153818,1950.4,1950.0,1.28205128]
[1772418571127,4.153818,1950.4,1949.9,0.5307794]
[1772418571364,4.153818,1950.4,1949.9,1.81289545]
[1772418571864,2.87202617,1950.4,1950.0,0.51073098]
[1772418572572,2.87202617,1950.3,1949.9,1.78280349]
[1772418574164,4.15372372,1950.6,1950.1,3.07057348]
[1772418574472,4.15368546,1950.6,1950.1,3.07057348]
[1772418575354,3.29298224,1950.5,1950.0,1.406]
[1772418575940,3.29298224,1950.5,1950.0,4.47657348]
[1772418576279,2.87202617,1950.5,1950.1,3.07057348]
[1772418576572,2.87202617,1950.6,1950.1,3.07057348]
[1772418578073,2.87202617,1950.6,1950.1,3.07167348]
[1772418578460,0.001,1950.4,1950.1,3.07167348]
[1772418578847,0.001,1950.4,1950.2,3.07057348]
[1772418579669,0.001,1950.4,1950.1,1.28307677]
[1772418579879,3.29398224,1950.4,1950.1,0.0011]
[1772418580084,3.29298224,1950.2,1950.0,0.0011]
[1772418580241,3.29298224,1950.2,1949.8,0.0011]
[1772418580442,2.87202617,1950.1,1949.8,0.0011]
[1772418584173,4.15401244,1950.1,1949.8,0.0011]
[1772418584472,1.28207328,1950.0,1949.8,0.0011]
[1772418584681,2.87202617,1949.9,1949.8,0.0011]
[1772418586358,2.87202617,1949.9,1949.5,0.0011]
[1772418586586,2.87202617,1949.6,1949.5,0.0011]
[1772418589281,4.16017785,1949.8,1949.5,0.0011]
[1772418589480,2.87794323,1949.8,1949.5,0.0011]
[1772418591490,0.001,1949.7,1949.6,0.0011]
[1772418591650,2.87894323,1949.7,1949.6,0.0011]
[1772418592272,2.87894323,1949.7,1949.5,0.0011]
[1772418592473,2.87894323,1949.7,1949.4,0.0011]
[1772418592951,1.632,1949.6,1949.3,0.0011]
[1772418593156,2.87794323,1949.5,1949.3,0.0011]
[1772418593369,2.87794323,1949.4,1949.3,0.0011]
[1772418595870,4.16038911,1949.4,1949.3,0.0011]
[1772418596066,2.87794323,1949.5,1949.3,0.0011]
[1772418598285,1.28232274,1949.6,1949.3,0.0011]
[1772418598662,5.80023948,1949.7,1949.3,0.0011]
[1772418599085,5.80119676,1949.7,1949.3,0.0011]
[1772418599386,4.51894323,1949.7,1949.3,0.0011]
[1772418599587,5.80119291,1949.7,1949.3,0.0011]
[1772418599991,4.51894323,1949.7,1949.3,0.0011]
[1772418600360,4.16120549,1949.7,1949.3,0.0011]
[1772418600788,2.87894323,1949.7,1949.3,2.81553219]
[1772418601091,5.12795011,1950.1,1949.3,2.81553219]
[1772418601092,2.87794323,1950.1,1949.4,2.81443219]
[1772418602594,4.15996377,1950.1,1949.5,1.28238009]
[1772418602797,2.87794323,1950.0,1949.3,5.51299799]
[1772418603087,2.87794323,1950.0,1949.4,2.81443219]
[1772418603291,1.28198725,1950.1,1949.4,2.81443219]
[1772418603509,2.87794323,1950.3,1949.4,2.81443219]
[1772418603659,2.87794323,1950.4,1949.6,2.81443219]
[1772418604490,0.001,1950.0,1949.6,2.81443219]
[1772418605102,2.87894323,1950.0,1949.5,0.0011]
[1772418605399,2.87894323,1950.0,1949.5,1.28347674]
[1772418605562,2.87894323,1950.0,1949.5,0.0011]
[1772418605964,2.87894323,1950.0,1949.5,1.28347541]
[1772418606395,2.87894323,1950.0,1949.5,1.28347831]
[1772418607271,0.001,1950.0,1949.6,2.81443219]
[1772418608393,0.001,1950.0,1949.7,1.418]
[1772418608568,0.001,1950.0,1949.8,2.81443219]
[1772418610085,0.001,1950.0,1949.8,4.09661095]
[1772418610880,0.001,1950.0,1949.8,2.81443219]
[1772418611591,0.001,1950.0,1949.8,1.2821751]
[1772418611797,4.15976892,1950.4,1949.9,2.81443219]
[1772418611999,4.15976892,1950.4,1950.0,2.81443219]
[1772418612806,2.87794323,1950.6,1950.0,2.81443219]
[1772418613018,1.28172717,1950.5,1950.0,2.81443219]
[1772418613505,1.28172717,1950.5,1950.0,4.09647984]
[1772418613701,3.92696938,1950.5,1950.0,4.09647984]
[1772418614207,3.92696938,1950.5,1949.6,5.12873115]
[1772418614208,2.64524221,1950.4,1949.6,2.71582578]
[1772418616887,2.64524221,1950.2,1949.6,2.71582578]
[1772418617087,2.90203498,1950.1,1949.5,1.4241]
[1772418617280,2.10512461,1949.8,1949.2,0.0011]
[1772418617480,2.90203498,1949.7,1949.2,0.0011]
[1772418618984,4.1843493,1949.6,1949.2,0.0011]
[1772418620283,2.10512461,1949.8,1949.2,0.64404877]
[1772418620608,2.90203498,1950.0,1949.2,0.64404877]
[1772418621709,4.18415201,1949.9,1949.3,1.91181424]
[1772418624014,2.90203498,1949.8,1949.2,0.0011]
[1772418624309,2.90203498,1949.6,1949.2,0.0011]
[1772418624713,2.90203498,1949.5,1949.1,0.0011]
[1772418625015,1.644,1949.7,1949.0,0.00263886]
[1772418625016,2.90203498,1949.3,1949.0,0.00263886]
[1772418625211,2.90203498,1949.1,1948.6,0.0011]
[1772418625598,2.90203498,1948.9,1948.6,0.0011]
[1772418625910,2.67223057,1948.7,1948.6,0.0011]
[1772418626111,2.64199532,1948.7,1948.6,0.0011]
[1772418628713,2.90203498,1948.9,1948.6,0.0011]
[1772418628903,4.54803498,1948.9,1948.6,0.0011]
[1772418629109,1.646,1948.9,1948.6,0.0011]
[1772418629305,2.90203498,1948.8,1948.6,0.0011]
[1772418630316,4.18489226,1948.8,1948.6,0.0011]
[1772418630518,4.18487794,1948.8,1948.6,0.0011]
[1772418630719,7.23545502,1949.2,1948.6,0.8678509]
[1772418630720,2.90203498,1949.2,1948.6,0.8678509]
[1772418633006,2.93052433,1949.3,1948.8,0.85318194]
[1772418633428,4.55003498,1949.3,1948.8,0.85318194]
[1772418634020,2.90203498,1949.2,1948.7,1.28290655]
[1772418634226,2.90203498,1949.2,1948.6,0.84746693]
[1772418634401,2.90203498,1949.1,1948.6,0.0011]
[1772418634723,2.90203498,1949.1,1948.5,0.0011]
[1772418634923,2.93052225,1949.3,1948.8,0.84064085]
[1772418635093,5.83255723,1949.3,1948.8,0.84064085]
[1772418635294,4.18455723,1949.3,1948.8,0.84064085]
[1772418635498,4.55103498,1949.3,1948.8,0.84064085]
[1772418635801,5.83355103,1949.3,1948.8,0.84064085]
[1772418636398,4.55103498,1949.3,1948.8,0.84064085]
[1772418637228,4.55103498,1949.3,1948.9,1.28277489]
[1772418637736,2.90203498,1949.9,1949.0,0.8201071]
[1772418637906,4.18415805,1949.9,1949.0,0.8201071]
[1772418639135,5.83315805,1949.9,1949.1,1.28264327]
[1772418639302,2.90203498,1949.7,1948.9,2.69971757]
[1772418639503,2.90203498,1949.7,1948.9,3.51294621]
[1772418640142,2.90203498,1949.7,1949.0,0.80634021]
[1772418640851,2.90203498,1949.6,1948.9,3.49916012]
[1772418641017,2.90303498,1949.6,1948.9,3.49916012]
[1772418641331,2.90203498,1949.4,1948.8,1.28279333]
[1772418641531,2.90203498,1949.4,1948.7,0.80054255]
[1772418642443,2.90203498,1949.2,1948.7,0.0011]
[1772418643335,2.90203498,1949.0,1948.7,0.0011]
[1772418643930,1.649,1949.1,1948.7,0.0011]
[1772418644233,4.55103498,1949.1,1948.7,0.0011]
[1772418644426,2.90203498,1949.0,1948.7,0.0011]
[1772418645545,4.18480987,1948.9,1948.7,0.0011]
[1772418645909,5.83371936,1949.1,1948.7,0.0011]
[1772418646121,2.90203498,1949.0,1948.7,0.0011]
[1772418646961,5.13057308,1949.4,1948.7,0.76201802]
[1772418646962,2.85010924,1949.4,1948.7,0.76201802]
[1772418647159,4.50110924,1949.4,1948.7,0.76201802]
[1772418648554,4.13346528,1949.6,1948.9,0.74689466]
[1772418649327,0.001,1949.6,1948.9,0.74689466]
[1772418650590,0.001,1949.6,1949.1,0.73282606]
[1772418652338,0.00153886,1950.0,1949.1,0.7247822]
[1772418652665,0.00153886,1950.0,1949.3,0.71773127]
[1772418652842,0.00153886,1950.0,1949.4,0.71773127]
[1772418653158,0.001,1949.5,1949.4,0.71773127]
[1772418653329,0.00153886,1950.0,1949.4,0.71773127]
[1772418653943,0.00153886,1950.0,1949.6,0.71070271]
[1772418655236,0.00153886,1950.0,1949.7,1.28224855]
[1772418655435,0.00153886,1950.0,1949.7,1.98591662]
[1772418656237,0.00153886,1950.0,1949.8,0.69660164]
[1772418656961,0.00153886,1950.0,1949.7,1.28224855]
[1772418657761,0.00153886,1950.0,1949.6,1.28226513]
[1772418658360,2.8516481,1950.0,1949.6,1.28226513]
[1772418658566,2.8516481,1950.0,1949.5,1.413]
[1772418659256,2.8516481,1950.0,1949.5,1.95778742]
[1772418659561,2.8516481,1950.0,1949.7,1.28224855]
[1772418659562,0.00153886,1950.0,1949.7,1.28224855]
[1772418659763,0.00153886,1950.0,1949.8,0.66832686]
[1772418660456,1.01149773,1950.3,1949.8,0.66832686]
[1772418660862,1.01149773,1950.3,1949.7,1.28224855]
[1772418660863,2.85010924,1950.2,1949.7,1.28224855]
[1772418661536,1.01149773,1950.3,1949.8,0.65418964]
[1772418663068,2.85010924,1950.8,1949.7,4.23383265]
[1772418663363,2.8516481,1951.0,1950.1,2.9515841]
[1772418663668,2.8516481,1951.0,1950.2,2.1129198]
[1772418664036,4.1330438,1951.0,1950.2,2.1129198]
[1772418664762,4.1330438,1951.0,1950.3,0.01653884]
[1772418665609,4.1330438,1951.0,1950.4,1.29162863]
[1772418665738,2.85010924,1950.9,1950.2,0.831]
[1772418665940,2.85010924,1950.9,1950.0,1.28201569]
[1772418666241,2.85010924,1950.8,1950.0,1.29185597]
[1772418667065,2.85010924,1950.8,1949.9,6.34735264]
[1772418667066,2.85010924,1950.8,1949.9,2.50106525]
[1772418667375,2.85010924,1950.8,1949.9,2.50419855]
[1772418667970,2.85010924,1950.6,1949.6,5.12912814]
[1772418668561,2.85010924,1950.6,1949.6,1.28231432]
[1772418671176,2.85010924,1950.4,1949.5,2.69833036]
[1772418671479,2.85010924,1950.2,1949.5,2.69833036]
[1772418673968,1.28198553,1950.1,1949.5,2.69833036]
[1772418674268,2.85010924,1950.2,1949.5,2.69833036]
[1772418674469,2.84355181,1950.4,1949.7,2.9515841]
[1772418674657,2.84355181,1950.4,1949.5,2.69833036]
[1772418676175,2.84355181,1950.3,1949.5,1.28233036]
[1772418676889,5.12713927,1951.0,1949.6,2.9515841]
[1772418676890,2.84355181,1950.7,1949.6,2.9515841]
[1772418677041,2.84355181,1950.7,1949.6,2.9526841]
[1772418677245,0.001,1950.3,1949.6,2.9526841]
[1772418677441,2.84455181,1950.3,1949.6,0.0011]
[1772418678090,2.84355181,1950.2,1949.6,0.0011]
[1772418678282,2.84355181,1950.2,1949.5,0.0011]
[1772418678493,2.84300181,1950.0,1949.5,0.0011]
[1772418679148,2.53870391,1949.9,1949.5,0.0011]
[1772418679351,2.84300181,1949.8,1949.5,0.0011]
[1772418680289,2.84300181,1949.8,1949.3,0.0011]
[1772418680454,2.84300181,1949.6,1949.3,0.0011]
[1772418681047,2.84300181,1949.6,1949.0,0.00153886]
[1772418683648,2.84300181,1949.5,1949.0,0.00153886]
[1772418687784,4.12544769,1949.4,1949.0,0.00153886]
[1772418688769,4.12536914,1949.6,1949.0,0.00153886]
[1772418688964,1.282296,1949.7,1949.0,0.00153886]
[1772418689198,2.84300181,1950.1,1949.0,0.00153886]
[1772418689397,2.84300181,1950.1,1949.1,4.3516841]
[1772418689571,0.001,1950.3,1949.1,4.3516841]
[1772418689895,1.28285892,1950.3,1949.2,1.28257746]
[1772418690196,0.001,1950.3,1949.2,1.28257746]
[1772418690378,0.001,1950.3,1949.4,2.9515841]
[1772418692511,0.001,1950.3,1949.5,1.28238009]
[1772418693007,6.77374857,1950.6,1949.5,1.28238009]
[1772418693008,0.001,1950.6,1950.0,2.9515841]
[1772418694478,0.001,1950.6,1950.1,1.28198553]
[1772418694931,2.84400181,1950.6,1949.7,2.69024855]
[1772418697392,2.84300181,1950.4,1949.6,3.32227717]
[1772418697592,2.84300181,1950.4,1949.6,1.28227717]
[1772418699412,1.28185407,1950.3,1949.5,2.68934154]
[1772418699583,2.84300181,1950.2,1949.5,2.68934154]
[1772418702181,2.84300181,1950.0,1949.5,2.69044154]
[1772418702616,2.84400181,1950.3,1949.6,2.10363786]
[1772418702994,2.84300181,1950.2,1949.5,1.28344154]
[1772418703912,2.84300181,1950.2,1949.5,1.28347132]
[1772418704521,2.84300181,1950.0,1949.5,0.0011]
[1772418706119,2.84300181,1950.2,1949.5,0.0011]
[1772418707123,2.84300181,1950.1,1949.5,0.0011]
[1772418708929,2.84300181,1950.0,1949.5,0.0011]
[1772418711126,4.12509503,1950.0,1949.5,0.0011]
[1772418712334,1.28209322,1950.0,1949.5,0.0011]
[1772418712502,4.1258925,1950.3,1949.5,0.0011]
[1772418712937,2.84400181,1950.3,1949.5,0.0011]
[1772418713446,2.84400181,1950.3,1949.6,2.10363786]
[1772418714846,2.84400181,1950.3,1949.5,1.28348009]
[1772418714847,25.54956925,1949.5,1949.4,0.0011]
[1772418715019,2.84400181,1950.3,1949.6,2.10363786]
[1772418715217,2.84400181,1950.3,1949.7,1.28224855]
[1772418715948,0.001,1950.2,1949.7,1.28224855]
[1772418716147,2.84400181,1950.2,1949.7,1.28224855]
[1772418717137,2.69718506,1950.3,1949.7,3.90474868]
[1772418717431,2.69718506,1950.3,1949.8,1.406]
[1772418719835,2.69718506,1950.3,1949.9,1.28211703]
[1772418720159,2.69618506,1950.2,1949.8,2.68813185]
[1772418720472,2.69618506,1950.2,1949.6,0.0011]
[1772418720643,2.69618506,1950.2,1949.5,0.0011]
[1772418720838,1.28285482,1950.3,1949.3,0.0011]
[1772418720839,2.69618506,1950.0,1949.3,0.0011]
[1772418721155,2.69618506,1949.8,1949.3,0.0011]
[1772418721342,2.69618506,1949.7,1949.3,0.0011]
[1772418721552,2.69618506,1949.9,1949.3,3.38721775]
[1772418721733,2.69618506,1949.9,1949.3,6.00971788]
[1772418722868,2.69618506,1949.9,1949.3,1.28357989]
[1772418722869,2.69618506,1949.8,1949.3,1.28357989]
[1772418724864,2.69618506,1949.8,1949.3,0.0011]
[1772418725070,2.69618506,1949.7,1949.3,0.0011]
[1772418727539,2.69618506,1949.6,1949.3,0.0011]
[1772418728370,2.69618506,1949.6,1949.4,0.0011]
[1772418734371,3.04665166,1949.5,1949.2,0.0011]
[1772418735479,3.04665166,1949.7,1949.2,3.08872947]
[1772418735775,0.001,1949.8,1949.3,3.08762947]
[1772418736182,3.04765166,1949.8,1949.3,3.08762947]
[1772418736385,4.32984927,1949.8,1949.2,0.0011]
[1772418736565,3.04665166,1949.6,1949.2,0.0011]
[1772418737283,3.28278936,1949.4,1949.2,0.0011]
[1772418737456,3.28278936,1949.4,1948.8,0.0011]
[1772418737651,3.28278936,1949.4,1948.5,0.0011]
[1772418737652,3.28278936,1949.2,1948.5,0.0011]
[1772418737898,3.28278936,1949.2,1948.6,0.00483886]
[1772418738379,3.28278936,1949.1,1948.6,0.00483886]
[1772418738757,3.28278936,1949.1,1948.5,0.0011]
[1772418738984,3.28278936,1949.1,1948.6,0.00483886]
[1772418739184,3.28278936,1949.4,1948.7,3.1728814]
[1772418739382,3.28278936,1949.3,1948.8,4.45572212]
[1772418740056,3.28278936,1949.3,1948.9,1.416]
[1772418740369,3.28278936,1949.3,1948.9,1.42083886]
[1772418740720,3.28278936,1949.3,1949.2,0.0011]
[1772418740881,3.28278936,1949.3,1948.9,1.42083886]
[1772418741183,3.28278936,1949.3,1948.9,0.00483886]
[1772418741682,3.28278936,1949.2,1948.9,0.00483886]
[1772418742074,3.28278936,1949.4,1948.9,0.00483886]
[1772418742371,3.28278936,1949.3,1948.9,0.00483886]
[1772418743271,3.28278936,1949.3,1948.5,2.70113746]
[1772418743473,3.28278936,1949.3,1948.6,0.00483886]
[1772418743791,3.28278936,1949.1,1948.6,0.00483886]
[1772418744873,4.56534743,1949.3,1948.6,3.17772026]
[1772418745192,1.28255807,1949.3,1948.6,3.17772026]
[1772418745487,3.28278936,1949.2,1948.6,3.17772026]
[1772418745788,5.12990883,1949.4,1948.6,3.17772026]
[1772418745789,3.28278936,1949.4,1948.7,3.1728814]
[1772418746193,3.28278936,1949.6,1948.7,3.1728814]
[1772418746382,3.28278936,1949.6,1948.9,3.1728814]
[1772418746689,3.28278936,1949.6,1949.0,4.5898814]
[1772418747763,3.28278936,1949.6,1949.1,1.28264327]
[1772418748212,4.56512047,1949.6,1949.0,5.87254089]
[1772418748390,4.56512047,1949.6,1949.1,0.00483886]
[1772418748596,0.001,1949.8,1949.1,3.17772026]
[1772418748970,3.28378936,1949.8,1949.1,3.17772026]
[1772418749277,3.28378936,1949.8,1949.2,4.5898814]
[1772418749797,3.28378936,1949.8,1949.3,4.45539307]
[1772418749968,0.001,1949.8,1949.4,3.1728814]
[1772418751495,0.001,1949.8,1949.5,0.00483886]
[1772418751994,3.28378936,1949.8,1949.5,0.00483886]
[1772418752899,0.001,1949.8,1949.5,0.00483886]
[1772418754092,0.001,1949.8,1949.4,4.5918814]
[1772418754093,0.001,1949.8,1949.4,1.419]
[1772418754297,0.001,1949.8,1949.4,4.5918814]
[1772418754502,3.28278936,1950.2,1949.5,3.1728814]
[1772418754715,0.001,1950.3,1949.5,3.1728814]
[1772418756205,3.28378936,1950.3,1949.7,3.1728814]
[1772418756417,3.28378936,1950.3,1949.6,2.70131432]
[1772418756614,3.28378936,1950.3,1949.6,5.87419572]
[1772418757486,3.28378936,1950.3,1949.7,3.1728814]
[1772418758091,0.001,1950.6,1949.7,3.1728814]
[1772418758328,0.001,1950.6,1949.9,3.1728814]
[1772418758473,0.001,1950.6,1950.1,3.1728814]
[1772418758888,0.001,1950.6,1950.2,1.42]
[1772418759173,3.28378936,1950.6,1950.2,1.42]
[1772418759791,3.28378936,1950.6,1949.9,3.1728814]
[1772418759792,3.28378936,1950.6,1950.1,1.419]
[1772418760788,4.56545584,1950.6,1950.1,1.419]
[1772418761105,4.56545584,1950.6,1950.1,2.7009338]
[1772418761505,3.28378936,1950.6,1950.1,2.7009338]
[1772418762023,4.5654648,1950.6,1950.1,2.7009338]
[1772418764718,3.28378936,1950.5,1949.7,2.70324855]
[1772418765117,3.28378936,1950.5,1949.7,5.87612995]
[1772418765626,3.28378936,1950.5,1949.8,3.1728814]
[1772418766435,0.001,1950.5,1950.0,3.1728814]
[1772418766608,0.001,1950.5,1950.1,4.5948814]
[1772418768531,0.001,1950.5,1950.2,1.2819198]
[1772418768952,0.00153886,1951.0,1950.3,3.13691137]
[1772418769231,3.13484698,1951.4,1950.4,3.13691137]
[1772418769404,3.13484698,1951.3,1950.6,3.13691137]
[1772418770217,1.28109806,1951.5,1950.6,3.13691137]
[1772418770218,4.41596201,1951.5,1950.6,3.13691137]
[1772418770529,3.13484698,1951.7,1950.8,3.13691137]
[1772418770712,5.1233365,1951.9,1951.0,3.13691137]
[1772418770713,3.13484698,1951.9,1951.0,3.13691137]
[1772418770909,0.85118843,1952.3,1951.3,0.25239224]
[1772418771113,3.13484698,1953.7,1952.3,2.91618073]
[1772418771321,3.13484698,1953.6,1952.1,2.04688221]
[1772418771517,3.13484698,1953.5,1952.2,0.831]
[1772418772132,3.13484698,1953.5,1952.3,0.909]
[1772418772530,3.13484698,1953.3,1952.3,2.18952166]
[1772418772736,3.13484698,1953.3,1952.3,0.909]
[1772418772926,3.13484698,1953.3,1952.3,2.18953525]
[1772418773235,3.13484698,1953.3,1952.2,1.28056277]
[1772418773436,3.13484698,1953.3,1952.2,1.421]
[1772418773640,3.13484698,1953.1,1952.1,2.70162467]
[1772418775143,4.4149289,1953.0,1952.1,2.70162467]
[1772418775530,4.4149289,1953.0,1952.1,5.6467778]
[1772418775731,3.13484698,1953.0,1952.1,5.6467778]
[1772418776945,3.13484698,1953.0,1952.2,1.421]
[1772418777145,1.28014747,1952.9,1952.2,2.70156648]
[1772418777645,4.46715191,1952.8,1952.2,1.421]
[1772418778027,4.46715191,1952.8,1951.6,0.065536]
[1772418778351,4.46715191,1952.8,1951.6,0.83]
[1772418778945,1.28262804,1953.0,1951.6,0.83]
[1772418779242,1.28262804,1953.0,1951.7,1.28093456]
[1772418779243,5.74977995,1953.0,1951.7,1.28093456]
[1772418779449,5.74977995,1953.0,1951.8,0.25239224]
[1772418779625,4.46969077,1953.0,1951.8,0.25239224]
[1772418779823,0.00253886,1953.0,1951.8,0.25239224]
[1772418780150,4.46715191,1952.9,1951.9,1.419]
[1772418780353,4.46715191,1952.9,1952.0,0.065536]
[1772418780520,4.46715191,1952.9,1952.1,1.419]
[1772418781144,0.00253886,1953.0,1952.2,1.46746273]
[1772418781348,2.72742771,1953.8,1952.3,0.065536]
[1772418781349,8.47415694,1953.8,1952.3,0.065536]
[1772418782046,4.46715191,1953.8,1952.4,0.18685624]
[1772418782249,4.46715191,1953.9,1952.6,0.065536]
[1772418782451,4.46715191,1953.9,1952.7,0.18685624]
[1772418783359,4.46715191,1953.8,1952.8,1.28021302]
[1772418783524,4.46715191,1953.8,1952.8,2.11021302]
[1772418783721,4.46715191,1953.8,1952.5,1.34594573]
[1772418783916,4.46715191,1953.8,1952.6,1.417]